[Event "FIDE WCCC G12 2018"]
[Site "Santiago de Compostela"]
[Date "2018.11.13"]
[Round "9"]
[White "Dakic, Marta"]
[Black "Nurmanova, Alua"]
[Result "1-0"]
[ECO "B23"]
[WhiteElo "1756"]
[BlackElo "1780"]
[Annotator "NA RC"]
[PlyCount "97"]
[EventDate "2018.11.04"]
[EventType "swiss"]
[EventCountry "ESP"]
[SourceTitle "playchess.com"]
[Source "ChessBase"]
[SourceQuality "1"]
[TimeControl "40/5400+30:1800+30"]

1. e4 {[%emt 0:00:00]} c5 {[%emt 0:00:00]} 2. Nc3 {[%emt 0:00:00]} d6 {[%emt 0:00:00]} 3. f4 {[%emt 0:00:19]} Nf6 {[%emt 0:02:31]} 4. Nf3 {[%emt 0:00:37]} g6 {[%emt 0:06:14]} 5. Bb5+ {[%emt 0:02:43]} Nc6 {[%emt 0:08:51]} 6. O-O {[%emt 0:02:32]} Bg7 {[%emt 0:03:11]} 7. Bxc6+ {[%emt 0:01:57]} bxc6 {[%emt 0:00:05]} 8. d3 {[%emt 0:01:10]} O-O {[%emt 0:01:02]} 9. Qe1 {[%emt 0:02:06]} e6 {[%emt 0:20:01]} 10. e5 {[%emt 0:10:22]} Ne8 {[%emt 0:08:06]} 11. Qf2 {[%emt 0:08:52]} d5 {[%emt 0:11:30]} 12. Qxc5 {[%emt 0:01:41]} Bd7 {[%emt 0:04:48]} 13. Qf2 {[%emt 0:05:47]} Qb6 {[%emt 0:05:22]} 14. Na4 {[%emt 0:04:41]} Qxf2+ {[%emt 0:04:59]} 15. Rxf2 {[%emt 0:00:08]} Nc7 {[%emt 0:01:12]} 16. Nc5 {[%emt 0:00:55]} Rfd8 {[%emt 0:01:26]} 17. a4 {[%emt 0:09:29]} Bf8 {[%emt 0:02:18]} 18. Be3 {[%emt 0:02:24]} a5 {[%emt 0:03:26]} 19. Nd2 {[%emt 0:04:01]} Be8 {[%emt 0:00:57]} 20. Bd4 {[%emt 0:01:48]} Rdb8 {[%emt 0:05:39]} 21. Ndb3 {[%emt 0:00:45]} Na6 {[%emt 0:00:39]} 22. Nxa6 {[%emt 0:01:42]} Rxa6 {[%emt 0:00:01]} 23. Ra2 {[%emt 0:01:40]} Be7 {[%emt 0:01:32]} 24. Bc5 {[%emt 0:03:43]} Bd8 {[%emt 0:00:54]} 25. Bd6 {[%emt 0:01:11]} Rxb3 {[%emt 0:00:37]} 26. cxb3 {[%emt 0:00:19]} Bb6 {[%emt 0:00:03]} 27. b4 {[%emt 0:01:06]} axb4 {[%emt 0:02:13]} 28. b3 {[%emt 0:05:07]} Bxf2+ {[%emt 0:01:32]} 29. Kxf2 {[%emt 0:00:04]} Kg7 {[%emt 0:00:51]} 30. Ke3 {[%emt 0:02:01]} f6 {[%emt 0:00:31]} 31. exf6+ {[%emt 0:00:06]} Kxf6 {[%emt 0:00:08]} 32. Bxb4 {[%emt 0:00:03]} Kf7 {[%emt 0:01:30]} 33. Bc5 {[%emt 0:00:24]} Bd7 {[%emt 0:00:11]} 34. a5 {[%emt 0:07:09]} Be8 {[%emt 0:01:07]} 35. b4 {[%emt 0:00:47]} Bd7 {[%emt 0:00:51]} 36. Rf2 {[%emt 0:00:27]} Ra8 {[%emt 0:01:11]} 37. Kd4 {[%emt 0:01:30]} Kf6 {[%emt 0:01:18]} 38. Bd6 {[%emt 0:00:20]} Ra6 {[%emt 0:00:14]} 39. g4 {[%emt 0:00:50]} Bc8 {[%emt 0:00:42]} 40. Kc5 {[%emt 0:00:00]} Bd7 41. h3 {[%emt 0:02:25]} Kf7 {[%emt 0:03:51]} 42. g5 {[%emt 0:01:15]} Ke8 {[%emt 0:01:06]} 43. Be5 {[%emt 0:01:55]} Ke7 {[%emt 0:00:56]} 44. Bf6+ {[%emt 0:00:24]} Ke8 {[%emt 0:00:09]} 45. Kd6 {[%emt 0:01:01]} Ra8 {[%emt 0:00:31]} 46. Kc7 {[%emt 0:00:17]} c5 {[%emt 0:02:13]} 47. Kb7 {[%emt 0:01:22]} Rc8 {[%emt 0:00:21]} 48. a6 {[%emt 0:00:14]} cxb4 {[%emt 0:01:29]} 49. a7 {[%emt 0:00:06]} 1-0

[Event "FIDE WCCC G12 2018"]
[Site "Santiago de Compostela"]
[Date "2018.11.13"]
[Round "9"]
[White "Mihelic, Vesna"]
[Black "Ke, Rianne"]
[Result "1/2-1/2"]
[ECO "C50"]
[WhiteElo "1741"]
[BlackElo "1600"]
[Annotator "NA RC"]
[PlyCount "102"]
[EventDate "2018.11.04"]
[EventType "swiss"]
[EventCountry "ESP"]
[SourceTitle "playchess.com"]
[Source "ChessBase"]
[SourceQuality "1"]
[TimeControl "40/5400+30:1800+30"]

1. e4 {[%emt 0:00:00]} e5 {[%emt 0:00:00]} 2. Nf3 {[%emt 0:00:00]} Nc6 {[%emt 0:00:00]} 3. Bc4 {[%emt 0:00:00]} Nf6 {[%emt 0:00:00]} 4. d3 {[%emt 0:00:08]} Bc5 {[%emt 0:00:02]} 5. Nc3 {[%emt 0:00:12]} d6 {[%emt 0:00:08]} 6. Be3 {[%emt 0:00:16]} Bb6 {[%emt 0:00:15]} 7. Nd5 {[%emt 0:00:31]} Be6 {[%emt 0:04:15]} 8. Nxb6 {[%emt 0:03:04]} axb6 {[%emt 0:00:10]} 9. Bb3 {[%emt 0:01:20]} O-O {[%emt 0:02:37]} 10. O-O {[%emt 0:01:40]} d5 {[%emt 0:03:55]} 11. exd5 {[%emt 0:05:38]} Nxd5 {[%emt 0:05:03]} 12. Ng5 {[%emt 0:10:59]} Qf6 {[%emt 0:11:40]} 13. Nxe6 {[%emt 0:03:11]} Qxe6 {[%emt 0:01:32]} 14. Qf3 {[%emt 0:01:39]} Rad8 {[%emt 0:01:54]} 15. a3 {[%emt 0:05:45]} Nce7 {[%emt 0:03:26]} 16. Rfe1 {[%emt 0:04:27]} Nf5 {[%emt 0:11:50]} 17. Ba2 {[%emt 0:15:02]} h6 {[%emt 0:03:58]} 18. h3 {[%emt 0:01:53]} g5 {[%emt 0:07:12]} 19. Qg4 {[%emt 0:03:03]} Rfe8 {[%emt 0:11:15]} 20. Bd2 {[%emt 0:02:29]} Qg6 {[%emt 0:04:02]} 21. Rad1 {[%emt 0:06:30]} Nd4 {[%emt 0:03:52]} 22. Bxd5 {[%emt 0:02:39]} Rxd5 {[%emt 0:00:59]} 23. Qe4 {[%emt 0:00:39]} Qe6 {[%emt 0:03:48]} 24. c4 {[%emt 0:03:06]} Rd7 {[%emt 0:02:57]} 25. Bc3 {[%emt 0:06:29]} c6 {[%emt 0:02:43]} 26. Bxd4 {[%emt 0:02:55]} Rxd4 {[%emt 0:00:07]} 27. Qxd4 {[%emt 0:00:09]} exd4 {[%emt 0:00:08]} 28. Rxe6 {[%emt 0:00:05]} Rxe6 {[%emt 0:00:51]} 29. Kf1 {[%emt 0:00:39]} Kg7 {[%emt 0:04:20]} 30. Re1 {[%emt 0:03:54]} Rxe1+ {[%emt 0:04:40]} 31. Kxe1 {[%emt 0:00:02]} f5 {[%emt 0:01:40]} 32. g3 {[%emt 0:05:32]} Kf6 {[%emt 0:01:51]} 33. f4 {[%emt 0:00:28]} g4 {[%emt 0:02:58]} 34. h4 {[%emt 0:00:11]} Ke6 {[%emt 0:01:01]} 35. Kd2 {[%emt 0:02:05]} Kd6 {[%emt 0:00:36]} 36. Kc2 {[%emt 0:00:41]} Kc5 {[%emt 0:01:09]} 37. b4+ {[%emt 0:00:24]} Kd6 {[%emt 0:00:07]} 38. Kb3 {[%emt 0:00:44]} c5 {[%emt 0:00:59]} 39. Ka4 {[%emt 0:01:14]} Kc6 {[%emt 0:00:25]} 40. h5 {[%emt 0:00:00]} Kd6 {[%emt 0:00:00]} 41. Kb5 {[%emt 0:03:19]} cxb4 {[%emt 0:02:07]} 42. axb4 {[%emt 0:01:06]} Kc7 {[%emt 0:00:05]} 43. c5 {[%emt 0:00:07]} bxc5 {[%emt 0:00:27]} 44. Kxc5 {[%emt 0:00:12]} b6+ {[%emt 0:00:14]} 45. Kxd4 {[%emt 0:00:06]} Kd6 {[%emt 0:00:39]} 46. Kc4 {[%emt 0:07:30]} Kc6 {[%emt 0:00:11]} 47. Kd4 {[%emt 0:00:27]} Kd6 {[%emt 0:01:03]} 48. b5 {[%emt 0:00:19]} Ke6 {[%emt 0:00:19]} 49. Kc4 {[%emt 0:00:06]} Kd6 {[%emt 0:00:18]} 50. d4 {[%emt 0:00:07]} Ke6 {[%emt 0:00:12]} 51. d5+ {[%emt 0:00:06]} Kd7 {[%emt 0:00:10]} 1/2-1/2

[Event "FIDE WCCC G12 2018"]
[Site "Santiago de Compostela"]
[Date "2018.11.13"]
[Round "9"]
[White "Volovich, Julia"]
[Black "Savitha Shri B"]
[Result "0-1"]
[ECO "A43"]
[WhiteElo "1735"]
[BlackElo "1745"]
[Annotator "NA RC"]
[PlyCount "112"]
[EventDate "2018.11.04"]
[EventType "swiss"]
[EventCountry "ESP"]
[SourceTitle "playchess.com"]
[Source "ChessBase"]
[SourceQuality "1"]
[TimeControl "40/5400+30:1800+30"]

1. d4 {[%emt 0:00:00]} c5 {[%emt 0:00:00]} 2. d5 {[%emt 0:00:00]} Nf6 {[%emt 0:00:00]} 3. Nc3 {[%emt 0:00:00]} g6 {[%emt 0:00:34]} 4. e4 {[%emt 0:00:00]} d6 {[%emt 0:00:05]} 5. Bb5+ {[%emt 0:00:12]} Nbd7 {[%emt 0:02:22]} 6. a4 {[%emt 0:00:16]} a6 {[%emt 0:00:05]} 7. Be2 {[%emt 0:00:09]} Bg7 {[%emt 0:00:23]} 8. Nf3 {[%emt 0:01:17]} Qc7 {[%emt 0:01:27]} 9. h3 {[%emt 0:01:54]} Rb8 {[%emt 0:03:08]} 10. O-O {[%emt 0:03:01]} c4 11. Be3 {[%emt 0:04:16]} Nc5 {[%emt 0:09:27]} 12. Nd2 {[%emt 0:16:26]} b5 {[%emt 0:04:10]} 13. axb5 {[%emt 0:04:15]} axb5 {[%emt 0:00:02]} 14. b4 {[%emt 0:00:59]} Nfd7 {[%emt 0:19:18]} 15. bxc5 {[%emt 0:07:39]} Bxc3 {[%emt 0:00:07]} 16. cxd6 {[%emt 0:09:24]} Qxd6 {[%emt 0:01:57]} 17. Rb1 {[%emt 0:03:50]} Nf6 {[%emt 0:08:16]} 18. Bg5 {[%emt 0:11:50]} O-O {[%emt 0:03:02]} 19. Bxf6 {[%emt 0:01:28]} exf6 {[%emt 0:03:36]} 20. Nf3 {[%emt 0:01:42]} f5 {[%emt 0:01:36]} 21. Nd2 {[%emt 0:07:16]} Qf4 {[%emt 0:03:06]} 22. exf5 {[%emt 0:02:54]} Qxd2 {[%emt 0:01:41]} 23. fxg6 {[%emt 0:00:11]} hxg6 {[%emt 0:04:19]} 24. Qxd2 {[%emt 0:02:03]} Bxd2 {[%emt 0:00:02]} 25. Bxc4 {[%emt 0:00:11]} b4 {[%emt 0:01:04]} 26. Rfd1 {[%emt 0:01:30]} Bc3 {[%emt 0:00:02]} 27. g4 {[%emt 0:01:06]} Bd7 {[%emt 0:01:59]} 28. Rd3 {[%emt 0:01:47]} Ba4 {[%emt 0:00:35]} 29. Bb3 {[%emt 0:03:13]} Bb5 {[%emt 0:00:02]} 30. Re3 {[%emt 0:01:18]} Rfd8 {[%emt 0:03:07]} 31. Rd1 {[%emt 0:01:47]} Rd6 {[%emt 0:00:26]} 32. f4 {[%emt 0:01:04]} Rf6 {[%emt 0:01:40]} 33. d6 {[%emt 0:11:03]} Rd8 {[%emt 0:00:19]} 34. f5 {[%emt 0:00:50]} Rfxd6 {[%emt 0:01:12]} 35. Rxd6 {[%emt 0:00:19]} Rxd6 {[%emt 0:00:01]} 36. fxg6 {[%emt 0:00:12]} Bd4 {[%emt 0:00:04]} 37. gxf7+ {[%emt 0:00:18]} Kf8 {[%emt 0:00:03]} 38. Kf2 {[%emt 0:00:19]} Rf6+ {[%emt 0:00:06]} 39. Kg3 {[%emt 0:00:19]} Bxe3 {[%emt 0:00:02]} 40. h4 {[%emt 0:00:00]} Bf4+ {[%emt 0:00:00]} 41. Kh3 {[%emt 0:00:25]} Rxf7 {[%emt 0:01:26]} 42. Bxf7 {[%emt 0:00:05]} Kxf7 {[%emt 0:00:17]} 43. g5 {[%emt 0:00:10]} Ba4 {[%emt 0:00:09]} 44. Kg4 {[%emt 0:00:04]} Bxg5 {[%emt 0:00:07]} 45. hxg5 {[%emt 0:00:06]} Bxc2 {[%emt 0:00:03]} 46. Kf3 {[%emt 0:00:03]} b3 {[%emt 0:00:05]} 47. Ke3 {[%emt 0:00:08]} b2 {[%emt 0:00:05]} 48. Kd2 {[%emt 0:00:05]} b1=Q {[%emt 0:00:05]} 49. Ke3 {[%emt 0:00:03]} Qb4 {[%emt 0:00:05]} 50. Ke2 {[%emt 0:00:06]} Qe4+ {[%emt 0:00:06]} 51. Kf2 {[%emt 0:00:08]} Bd1 {[%emt 0:00:04]} 52. g6+ {[%emt 0:00:04]} Kg8 {[%emt 0:00:03]} 53. g7 {[%emt 0:00:04]} Qf3+ {[%emt 0:00:07]} 54. Kg1 {[%emt 0:00:04]} Ba4 {[%emt 0:00:10]} 55. Kh2 {[%emt 0:00:02]} Bc6 {[%emt 0:00:05]} 56. Kg1 {[%emt 0:00:05]} Qg2# {[%emt 0:00:03]} 0-1

[Event "FIDE WCCC G12 2018"]
[Site "Santiago de Compostela"]
[Date "2018.11.13"]
[Round "9"]
[White "Wang, Ellen"]
[Black "Kairbekova, Amina"]
[Result "0-1"]
[ECO "C17"]
[WhiteElo "1711"]
[BlackElo "1939"]
[Annotator "NA RC"]
[PlyCount "118"]
[EventDate "2018.11.04"]
[EventType "swiss"]
[EventCountry "ESP"]
[SourceTitle "playchess.com"]
[Source "ChessBase"]
[SourceQuality "1"]
[TimeControl "40/5400+30:1800+30"]

{[%evp 15,114,-31,14,-6,-9,0,-12,-165,34,-209,-208,-197,-155,-154,-128,-118,-117,-118,-130,-129,-142,-156,-160,-135,-125,32767,32767,32767,32767,-170,-185,-200,-215,32767,32767,32767,32767,-382,-306,32767,32767,-391,-405,-398,32767,32767,32767,-288,32767,32767,32767,32767,32767,32767,-300,-457,32767,-438,-417,32767,-398,32767,32767,32767,32767,-396,32767,32767,32767,-378,32767,-154,32767,-150,-141,32767,-667,32767,-624,32767,32767,32767,32767,32767,32767,-476,-443,-574,32767,-571,-830,-634,32767,-1047,-559,-4818,-848,-745,32767,-29997,-297]} 1. e4 {[%emt 0:00:00]} e6 {[%emt 0:00:07]} 2. d4 {[%emt 0:00:00]} d5 {[%emt 0:00:03]} 3. Nc3 {[%emt 0:00:00]} Bb4 {[%emt 0:00:13]} 4. e5 {[%emt 0:00:00]} c5 {[%emt 0:00:04]} 5. Bd2 {[%emt 0:00:00]} cxd4 {[%emt 0:08:38]} 6. Nb5 {[%emt 0:00:00]} Bc5 {[%emt 0:02:15]} 7. Qg4 {[%emt 0:00:04]} Kf8 {[%emt 0:01:49] C17: French: 3 Nc3 Bb4 4 e5 c5 sidelines} (7... g6 8. b4 Bf8 9. Nxd4 Qc7 10. Ngf3 a6 11. Bd3 Nd7 12. O-O Bg7 13. Qg3 Nxe5 14. Kh1 f6 15. Bf4 {½-½ (65) Mastrovasilis,D (2610)-Istratescu,A (2651) Legnica 2013}) 8. b4 {[%emt 0:00:07]} Bb6 {[%emt 0:01:31]} 9. Nf3 {[%emt 0:04:58]} Nc6 {[%emt 0:02:26]} 10. Qf4 {[%emt 0:04:52]} f6 {[%emt 0:05:34]} 11. exf6 $2 {[%emt 0:10:53]} (11. c4 $11) 11... Qxf6 $2 {[%emt 0:02:02]} (11... gxf6 $17 12. Qd6+ Qe7 13. Qxe7+ Ngxe7) 12. O-O-O $2 $146 {[%emt 0:06:58]} ({Predecessor:} 12. Nc7 $11 Rb8 (12... Bxc7 13. Qxc7 h6 14. b5 d3 15. Bxd3 Qxa1+ 16. Ke2 Qf6 17. bxc6 Qe7 18. Bb4 Qxb4 19. Qd8+ Kf7 20. Ne5# {1-0 (20) Saemisch,F-NN Aachen 1934}) 13. Qd6+ Qe7 14. Bf4) 12... e5 {[%emt 0:04:31]} 13. Qxf6+ {[%emt 0:05:06]} gxf6 {[%emt 0:01:30]} 14. Nd6 {[%emt 0:07:44]} Ke7 {[%emt 0:04:38]} 15. Nxc8+ {[%emt 0:02:17]} Rxc8 {[%emt 0:00:05]} 16. b5 {[%emt 0:02:29]} Na5 {[%emt 0:02:41]} 17. Bb4+ {[%emt 0:01:55]} Kf7 {[%emt 0:00:56]} 18. g3 {[%emt 0:04:43]} Ne7 {[%emt 0:04:38]} 19. Nd2 {[%emt 0:06:57]} Rc7 {[%emt 0:02:12]} 20. Bd6 {[%emt 0:04:22]} Rd7 {[%emt 0:00:31]} 21. Bb4 {[%emt 0:00:51]} Rhd8 {[%emt 0:00:40]} 22. Bh3 {[%emt 0:02:35]} Rc7 {[%emt 0:00:23]} 23. Kb1 {[%emt 0:02:26]} Nc4 {[%emt 0:01:58]} 24. Nb3 {[%emt 0:04:42]} a5 {[%emt 0:00:34]} 25. bxa6 {[%emt 0:04:31]} bxa6 {[%emt 0:00:05]} 26. a4 {[%emt 0:11:05]} a5 {[%emt 0:00:18]} 27. Bxe7 {[%emt 0:00:13]} Kxe7 {[%emt 0:00:33]} 28. Ka2 {[%emt 0:00:39]} Nd6 {[%emt 0:00:26]} 29. Kb2 {[%emt 0:03:11]} Ne4 {[%emt 0:00:38]} 30. Rhf1 {[%emt 0:00:57]} Nc3 {[%emt 0:00:17]} 31. Ra1 {[%emt 0:00:33]} Rc4 {[%emt 0:00:18]} 32. Rfe1 {[%emt 0:01:37]} Nxa4+ {[%emt 0:00:14]} 33. Kb1 {[%emt 0:01:12]} Nc3+ {[%emt 0:02:18]} 34. Kc1 {[%emt 0:01:12]} Ne4 {[%emt 0:04:17]} 35. f3 {[%emt 0:01:45]} (35. Nd2 $142 Nxd2 36. Kxd2) 35... Nf2 {[%emt 0:02:55]} 36. Bf5 {[%emt 0:02:06]} d3 {[%emt 0:00:05]} 37. Ra2 {[%emt 0:01:02]} dxc2 {[%emt 0:05:51]} 38. Rxc2 {[%emt 0:00:30]} e4 {[%emt 0:00:05]} 39. Ree2 {[%emt 0:01:37]} Nd3+ {[%emt 0:01:20]} 40. Kd1 {[%emt 0:00:00]} Rb4 {[%emt 0:00:00]} 41. Nc1 {[%emt 0:05:19]} Rd4 {[%emt 0:04:09]} 42. Rcd2 {[%emt 0:05:06]} Nxc1 {[%emt 0:02:10]} 43. Kxc1 {[%emt 0:00:44]} Rc4+ {[%emt 0:00:54]} 44. Rc2 {[%emt 0:03:07]} Ra4 {[%emt 0:02:35]} 45. Bxh7 {[%emt 0:05:17]} Ra1+ {[%emt 0:01:20]} 46. Kd2 {[%emt 0:00:39]} e3+ {[%emt 0:00:06]} 47. Rxe3+ {[%emt 0:02:21]} Bxe3+ {[%emt 0:00:05]} 48. Kxe3 {[%emt 0:00:08]} d4+ {[%emt 0:00:04]} 49. Kd2 {[%emt 0:00:54]} Rh8 {[%emt 0:00:28]} 50. Rc7+ {[%emt 0:00:47]} Kd6 {[%emt 0:00:06]} 51. Ra7 {[%emt 0:00:27]} Rb8 {[%emt 0:02:33]} 52. Kd3 {[%emt 0:01:54]} Ra3+ {[%emt 0:00:39]} 53. Kc2 {[%emt 0:00:46]} Ra2+ {[%emt 0:00:07]} 54. Kc1 {[%emt 0:00:21]} Rxh2 {[%emt 0:04:18]} 55. Bd3 {[%emt 0:02:11]} Rh1+ {[%emt 0:04:04]} 56. Kc2 {[%emt 0:00:41]} Rhb1 {[%emt 0:01:58]} 57. Be4 {[%emt 0:01:16]} R8b2+ {[%emt 0:00:15]} 58. Kd3 {[%emt 0:00:10]} Rd1+ {[%emt 0:00:05]} 59. Kc4 {[%emt 0:00:05]} Rb4# {[%emt 0:00:05] Kxd4} 0-1

[Event "FIDE WCCC G12 2018"]
[Site "Santiago de Compostela"]
[Date "2018.11.13"]
[Round "9"]
[White "Rueda Nessi, Juana"]
[Black "Pang, Ashley"]
[Result "0-1"]
[ECO "B23"]
[WhiteElo "1642"]
[BlackElo "1604"]
[Annotator "NA RC"]
[PlyCount "58"]
[EventDate "2018.11.04"]
[EventType "swiss"]
[EventCountry "ESP"]
[SourceTitle "playchess.com"]
[Source "ChessBase"]
[SourceQuality "1"]
[TimeControl "40/5400+30:1800+30"]

1. e4 {[%emt 0:00:00]} c5 {[%emt 0:00:00]} 2. Nc3 {[%emt 0:00:00]} b6 {[%emt 0:00:00]} 3. g3 {[%emt 0:00:00]} Bb7 {[%emt 0:00:09]} 4. Bg2 {[%emt 0:00:06]} e6 {[%emt 0:01:18]} 5. d3 {[%emt 0:02:12]} Nf6 {[%emt 0:05:30]} 6. f4 {[%emt 0:05:38]} a6 {[%emt 0:08:05]} 7. Nh3 {[%emt 0:04:29]} Qc7 {[%emt 0:03:02]} 8. O-O {[%emt 0:01:57]} Be7 {[%emt 0:06:11]} 9. g4 {[%emt 0:10:47]} d5 {[%emt 0:09:35]} 10. g5 {[%emt 0:03:27]} Nfd7 {[%emt 0:06:56]} 11. exd5 {[%emt 0:00:55]} exd5 {[%emt 0:02:50]} 12. Nxd5 {[%emt 0:03:40]} Bxd5 {[%emt 0:01:08]} 13. Bxd5 {[%emt 0:00:22]} Nc6 {[%emt 0:04:44]} 14. Re1 {[%emt 0:07:10]} Rd8 {[%emt 0:06:38]} 15. Qf3 {[%emt 0:12:45]} Nd4 {[%emt 0:06:19]} 16. Qe4 {[%emt 0:05:44]} Nf8 {[%emt 0:03:41]} 17. Bb3 {[%emt 0:08:02]} Qd7 {[%emt 0:09:20]} 18. Nf2 {[%emt 0:03:48]} h6 {[%emt 0:01:49]} 19. Qg2 {[%emt 0:05:49]} hxg5 {[%emt 0:02:48]} 20. fxg5 {[%emt 0:01:06]} Qf5 {[%emt 0:01:07]} 21. Re3 {[%emt 0:02:37]} Nfe6 {[%emt 0:02:02]} 22. g6 {[%emt 0:05:15]} Nf4 {[%emt 0:08:59]} 23. gxf7+ {[%emt 0:03:08]} Kf8 {[%emt 0:00:33]} 24. Qe4 {[%emt 0:10:54]} Qg5+ {[%emt 0:04:03]} 25. Rg3 {[%emt 0:01:47]} Nde2+ {[%emt 0:02:44]} 26. Kf1 {[%emt 0:00:14]} Qxg3 {[%emt 0:01:54]} 27. Bxf4 {[%emt 0:00:41]} Qxf4 {[%emt 0:00:21]} 28. Qxe2 {[%emt 0:00:51]} Rxh2 {[%emt 0:00:15]} 29. Rd1 {[%emt 0:00:19]} Bh4 {[%emt 0:00:33]} 0-1

[Event "FIDE WCCC G12 2018"]
[Site "Santiago de Compostela"]
[Date "2018.11.13"]
[Round "9"]
[White "Alimova, Dana"]
[Black "Mellor, Jessica"]
[Result "0-1"]
[ECO "C45"]
[WhiteElo "1628"]
[BlackElo "1555"]
[Annotator "NA RC"]
[PlyCount "100"]
[EventDate "2018.11.04"]
[EventType "swiss"]
[EventCountry "ESP"]
[SourceTitle "playchess.com"]
[Source "ChessBase"]
[SourceQuality "1"]
[TimeControl "40/5400+30:1800+30"]

1. e4 {[%emt 0:00:00]} e5 {[%emt 0:00:00]} 2. Nf3 {[%emt 0:00:00]} Nc6 {[%emt 0:00:00]} 3. d4 {[%emt 0:00:00]} exd4 {[%emt 0:00:03]} 4. Nxd4 {[%emt 0:00:00]} Qh4 {[%emt 0:00:37]} 5. Nb5 {[%emt 0:01:09]} Bb4+ {[%emt 0:00:50]} 6. Bd2 {[%emt 0:05:53]} Qxe4+ {[%emt 0:03:57]} 7. Qe2 {[%emt 0:35:31]} Qxe2+ {[%emt 0:01:52]} 8. Bxe2 {[%emt 0:00:21]} Bxd2+ {[%emt 0:01:31]} 9. Nxd2 {[%emt 0:00:22]} Kd8 {[%emt 0:00:53]} 10. O-O-O {[%emt 0:06:57]} a6 {[%emt 0:01:45]} 11. Nc3 {[%emt 0:00:14]} d6 {[%emt 0:01:39]} 12. Nde4 {[%emt 0:05:44]} Be6 {[%emt 0:08:40]} 13. f4 {[%emt 0:13:30]} h6 {[%emt 0:10:36]} 14. Nc5 {[%emt 0:11:39]} Kc8 {[%emt 0:16:53]} 15. Nxe6 {[%emt 0:07:58]} fxe6 {[%emt 0:01:58]} 16. Bg4 {[%emt 0:02:26]} Kd7 {[%emt 0:06:18]} 17. Rhe1 {[%emt 0:01:49]} Re8 {[%emt 0:07:33]} 18. Ne4 {[%emt 0:00:59]} b6 {[%emt 0:03:25]} 19. f5 {[%emt 0:02:29]} exf5 {[%emt 0:03:43]} 20. Bxf5+ {[%emt 0:00:05]} Kd8 {[%emt 0:00:25]} 21. Nxd6 {[%emt 0:01:34]} Rxe1 {[%emt 0:04:01]} 22. Nb7+ {[%emt 0:00:39]} Ke8 {[%emt 0:00:54]} 23. Rxe1+ {[%emt 0:01:33]} Nge7 {[%emt 0:00:47]} 24. Bg6+ {[%emt 0:00:37]} Kd7 {[%emt 0:01:27]} 25. Bd3 {[%emt 0:00:23]} a5 {[%emt 0:06:32]} 26. Rd1 {[%emt 0:00:37]} Kc8 {[%emt 0:00:41]} 27. Ba6 {[%emt 0:00:29]} Kb8 {[%emt 0:00:56]} 28. b4 {[%emt 0:00:31]} axb4 {[%emt 0:00:58]} 29. Rd7 {[%emt 0:00:23]} Ka7 {[%emt 0:01:00]} 30. Rxc7 {[%emt 0:00:16]} Kxa6 {[%emt 0:00:24]} 31. Nd6 {[%emt 0:00:15]} Rf8 {[%emt 0:01:20]} 32. Ne4 {[%emt 0:00:50]} Rf4 {[%emt 0:02:33]} 33. Nd2 {[%emt 0:00:45]} Rf2 {[%emt 0:00:38]} 34. g3 {[%emt 0:00:31]} Rxh2 {[%emt 0:00:11]} 35. Ne4 {[%emt 0:00:21]} Re2 {[%emt 0:00:21]} 36. Nd6 {[%emt 0:00:18]} Rg2 {[%emt 0:00:51]} 37. Ne4 {[%emt 0:00:11]} Re2 {[%emt 0:02:02]} 38. Nd6 {[%emt 0:00:11]} Re6 {[%emt 0:00:22]} 39. Nc4 {[%emt 0:00:26]} Rg6 {[%emt 0:00:20]} 40. Ne5 {[%emt 0:00:00]} Nxe5 {[%emt 0:00:00]} 41. Rxe7 {[%emt 0:01:24]} Nf3 {[%emt 0:00:52]} 42. Re4 {[%emt 0:00:19]} Ka5 {[%emt 0:00:38]} 43. g4 {[%emt 0:00:07]} Ng5 {[%emt 0:00:49]} 44. Re5+ {[%emt 0:00:06]} b5 {[%emt 0:00:33]} 45. Kb2 {[%emt 0:00:06]} Re6 {[%emt 0:00:40]} 46. Rd5 {[%emt 0:00:14]} Re4 {[%emt 0:01:10]} 47. Rd7 {[%emt 0:00:10]} Rxg4 {[%emt 0:01:24]} 48. Rxg7 {[%emt 0:00:08]} h5 {[%emt 0:00:22]} 49. Rg8 {[%emt 0:00:17]} h4 {[%emt 0:00:41]} 50. Rg7 {[%emt 0:00:06]} h3 {[%emt 0:00:14]} 0-1

[Event "FIDE WCCC G12 2018"]
[Site "Santiago de Compostela"]
[Date "2018.11.13"]
[Round "9"]
[White "Enkhsaran, Batsaikhan"]
[Black "Boramanikar Tanisha S"]
[Result "0-1"]
[ECO "B34"]
[WhiteElo "1614"]
[BlackElo "1716"]
[Annotator "NA RC"]
[PlyCount "94"]
[EventDate "2018.11.04"]
[EventType "swiss"]
[EventCountry "ESP"]
[SourceTitle "playchess.com"]
[Source "ChessBase"]
[SourceQuality "1"]
[TimeControl "40/5400+30:1800+30"]

1. e4 {[%emt 0:00:00]} c5 {[%emt 0:00:00]} 2. Nf3 {[%emt 0:00:00]} Nc6 {[%emt 0:00:16]} 3. d4 {[%emt 0:00:31]} cxd4 {[%emt 0:00:11]} 4. Nxd4 {[%emt 0:00:21]} Nf6 {[%emt 0:00:05]} 5. Nc3 {[%emt 0:00:37]} e5 {[%emt 0:00:17]} 6. Ndb5 {[%emt 0:00:15]} d6 {[%emt 0:00:16]} 7. a4 {[%emt 0:00:22]} a6 {[%emt 0:01:20]} 8. Na3 {[%emt 0:00:20]} Be6 {[%emt 0:01:03]} 9. Bg5 {[%emt 0:01:27]} Be7 {[%emt 0:02:43]} 10. Nc4 {[%emt 0:00:58]} Nd4 {[%emt 0:05:40]} 11. Bd3 {[%emt 0:02:28]} Rc8 {[%emt 0:04:45]} 12. Ne3 {[%emt 0:01:26]} Qb6 {[%emt 0:06:15]} 13. Rb1 {[%emt 0:02:25]} Qa5 {[%emt 0:08:17]} 14. O-O {[%emt 0:02:02]} Nc6 {[%emt 0:05:12]} 15. Bc4 {[%emt 0:15:55]} Qc5 {[%emt 0:05:35]} 16. Be2 {[%emt 0:08:08]} Nd4 {[%emt 0:07:41]} 17. Bxf6 {[%emt 0:02:34]} Bxf6 {[%emt 0:01:24]} 18. Ncd5 {[%emt 0:00:21]} Bxd5 {[%emt 0:05:06]} 19. exd5 {[%emt 0:08:53]} Nxe2+ {[%emt 0:01:05]} 20. Qxe2 {[%emt 0:00:19]} O-O {[%emt 0:07:15]} 21. b4 {[%emt 0:05:48]} Qc7 {[%emt 0:07:49]} 22. c4 {[%emt 0:00:30]} Bg5 {[%emt 0:01:27]} 23. Rfc1 {[%emt 0:01:31]} f5 {[%emt 0:03:18]} 24. Rc2 {[%emt 0:02:49]} Qe7 {[%emt 0:06:03]} 25. Nf1 {[%emt 0:01:39]} Rc7 {[%emt 0:01:10]} 26. a5 {[%emt 0:03:12]} Rfc8 {[%emt 0:01:36]} 27. Rb3 {[%emt 0:02:28]} Qd7 {[%emt 0:01:22]} 28. Ra3 {[%emt 0:02:40]} Bf6 {[%emt 0:02:48]} 29. Nd2 {[%emt 0:03:13]} e4 {[%emt 0:00:34]} 30. Raa2 {[%emt 0:09:17]} Bg5 {[%emt 0:01:02]} 31. Nb1 {[%emt 0:00:35]} Re8 {[%emt 0:03:10]} 32. Nc3 {[%emt 0:01:37]} Bf6 {[%emt 0:02:53]} 33. Na4 {[%emt 0:01:29]} Bd4 {[%emt 0:00:46]} 34. Qd2 {[%emt 0:01:22]} Be5 {[%emt 0:01:36]} 35. Nb6 {[%emt 0:02:16]} Qe7 {[%emt 0:00:40]} 36. Na4 {[%emt 0:08:42]} f4 {[%emt 0:01:54]} 37. Qe2 {[%emt 0:00:33]} Bd4 {[%emt 0:00:56]} 38. Ra3 {[%emt 0:01:37]} Qg5 {[%emt 0:01:59]} 39. Kh1 {[%emt 0:01:45]} Qf6 {[%emt 0:02:16]} 40. c5 {[%emt 0:00:00]} Qe5 {[%emt 0:00:00]} 41. cxd6 {[%emt 0:04:23]} Qxd6 {[%emt 0:05:22]} 42. Raa2 {[%emt 0:00:42]} Qxb4 {[%emt 0:02:03]} 43. h3 {[%emt 0:00:51]} Rxc2 {[%emt 0:00:44]} 44. Qxc2 {[%emt 0:00:20]} Qe1+ {[%emt 0:00:16]} 45. Kh2 {[%emt 0:00:09]} e3 {[%emt 0:00:45]} 46. fxe3 {[%emt 0:00:39]} Bxe3 {[%emt 0:00:24]} 47. Qc4 {[%emt 0:00:33]} Qg1# {[%emt 0:00:09]} 0-1